Department Family,Entity,Date,Expense Type,Expense Area,Supplier,SME,Transaction Number,Amount,Description,Expenditure Type
Land Registry,Land Registry,25/09/2015,Stationery National Contracts,Birkenhead Office,Banner Business Services Ltd,Large,1124259,"2,184.51",Stationery,Administration
Land Registry,Land Registry,25/09/2015,Stationery National Contracts,Central Operations Group,Banner Business Services Ltd,Large,1124259,12.51,Stationery,Administration
Land Registry,Land Registry,25/09/2015,Stationery National Contracts,Coventry Office,Banner Business Services Ltd,Large,1124259,"4,502.47",Stationery,Administration
Land Registry,Land Registry,25/09/2015,Stationery National Contracts,Croydon Office,Banner Business Services Ltd,Large,1124259,"1,076.11",Stationery,Administration
Land Registry,Land Registry,25/09/2015,Stationery National Contracts,Durham Office,Banner Business Services Ltd,Large,1124259,"2,441.98",Stationery,Administration
Land Registry,Land Registry,25/09/2015,Stationery National Contracts,Finance Group,Banner Business Services Ltd,Large,1124259,101.40,Stationery,Administration
Land Registry,Land Registry,25/09/2015,Stationery National Contracts,Fylde Office,Banner Business Services Ltd,Large,1124259,736.74,Stationery,Administration
Land Registry,Land Registry,25/09/2015,Stationery National Contracts,Gloucester Office,Banner Business Services Ltd,Large,1124259,"2,143.71",Stationery,Administration
Land Registry,Land Registry,25/09/2015,Stationery National Contracts,Governance & Policy,Banner Business Services Ltd,Large,1124259,88.96,Stationery,Administration
Land Registry,Land Registry,25/09/2015,Stationery National Contracts,HR,Banner Business Services Ltd,Large,1124259,204.82,Stationery,Administration
Land Registry,Land Registry,25/09/2015,Stationery National Contracts,HR Group,Banner Business Services Ltd,Large,1124259,11.22,Stationery,Administration
Land Registry,Land Registry,25/09/2015,Stationery National Contracts,Hull Office,Banner Business Services Ltd,Large,1124259,"1,807.38",Stationery,Administration
Land Registry,Land Registry,25/09/2015,Stationery National Contracts,Internal Solutions Group,Banner Business Services Ltd,Large,1124259,511.22,Stationery,Administration
Land Registry,Land Registry,25/09/2015,Stationery National Contracts,IS Service Delivery,Banner Business Services Ltd,Large,1124259,"1,015.71",Stationery,Administration
Land Registry,Land Registry,25/09/2015,Stationery National Contracts,Land Charges,Banner Business Services Ltd,Large,1124259,619.36,Stationery,Administration
Land Registry,Land Registry,25/09/2015,Stationery National Contracts,Leicester Office,Banner Business Services Ltd,Large,1124259,908.69,Stationery,Administration
Land Registry,Land Registry,25/09/2015,Stationery National Contracts,Nottingham Office,Banner Business Services Ltd,Large,1124259,"2,044.61",Stationery,Administration
Land Registry,Land Registry,25/09/2015,Stationery National Contracts,Peterborough Office,Banner Business Services Ltd,Large,1124259,852.20,Stationery,Administration
Land Registry,Land Registry,25/09/2015,Stationery National Contracts,Plymouth Office,Banner Business Services Ltd,Large,1124259,"1,570.53",Stationery,Administration
Land Registry,Land Registry,25/09/2015,Stationery National Contracts,Telford Office,Banner Business Services Ltd,Large,1124259,907.98,Stationery,Administration
Land Registry,Land Registry,25/09/2015,Stationery National Contracts,Wales Office,Banner Business Services Ltd,Large,1124259,"2,897.28",Stationery,Administration
Land Registry,Land Registry,25/09/2015,Stationery National Contracts,Weymouth Office,Banner Business Services Ltd,Large,1124259,555.33,Stationery,Administration
Land Registry,Land Registry,25/09/2015,Waste Disposal,Central Facilities Management Team,Banner Business Services Ltd,Large,1124259,"13,668.50",Waste Disposal,Administration
Land Registry,Land Registry,17/09/2015,Electricity,Coventry Office,Carillion Services Ltd,Large,1123684,"6,561.41",Electricity,Administration
Land Registry,Land Registry,17/09/2015,Electricity,Croydon Office,Carillion Services Ltd,Large,1123684,"8,139.49",Electricity,Administration
Land Registry,Land Registry,17/09/2015,Electricity,Durham Office,Carillion Services Ltd,Large,1123684,"4,608.55",Electricity,Administration
Land Registry,Land Registry,17/09/2015,Electricity,Fylde Office,Carillion Services Ltd,Large,1123684,"4,160.14",Electricity,Administration
Land Registry,Land Registry,17/09/2015,Electricity,Gloucester Computer Centre,Carillion Services Ltd,Large,1123684,"31,751.14",Electricity,Administration
Land Registry,Land Registry,17/09/2015,Electricity,Gloucester Office,Carillion Services Ltd,Large,1123684,"5,425.42",Electricity,Administration
Land Registry,Land Registry,17/09/2015,Electricity,Governance & Policy,Carillion Services Ltd,Large,1123684,"24,386.58",Electricity,Administration
Land Registry,Land Registry,17/09/2015,Electricity,Hull Office,Carillion Services Ltd,Large,1123684,"6,694.95",Electricity,Administration
Land Registry,Land Registry,17/09/2015,Electricity,Leicester Office,Carillion Services Ltd,Large,1123684,"3,075.50",Electricity,Administration
Land Registry,Land Registry,17/09/2015,Electricity,Nottingham Office,Carillion Services Ltd,Large,1123684,"7,658.46",Electricity,Administration
Land Registry,Land Registry,17/09/2015,Electricity,Telford Office,Carillion Services Ltd,Large,1123684,"5,628.32",Electricity,Administration
Land Registry,Land Registry,17/09/2015,Electricity,Wales Office,Carillion Services Ltd,Large,1123684,"4,557.54",Electricity,Administration
Land Registry,Land Registry,17/09/2015,Electricity,Weymouth Office,Carillion Services Ltd,Large,1123684,"3,826.90",Electricity,Administration
Land Registry,Land Registry,17/09/2015,Facilities - Core Fee,Birkenhead Office,Carillion Services Ltd,Large,1123683,"5,849.21",Facilities - Core Fee,Administration
Land Registry,Land Registry,17/09/2015,Facilities - Core Fee,Coventry Office,Carillion Services Ltd,Large,1123683,"12,826.93",Facilities - Core Fee,Administration
Land Registry,Land Registry,17/09/2015,Facilities - Core Fee,Croydon Office,Carillion Services Ltd,Large,1123683,"6,953.92",Facilities - Core Fee,Administration
Land Registry,Land Registry,17/09/2015,Facilities - Core Fee,Durham Office,Carillion Services Ltd,Large,1123683,"6,905.53",Facilities - Core Fee,Administration
Land Registry,Land Registry,17/09/2015,Facilities - Core Fee,Fylde Office,Carillion Services Ltd,Large,1123683,"4,362.95",Facilities - Core Fee,Administration
Land Registry,Land Registry,17/09/2015,Facilities - Core Fee,Gloucester Computer Centre,Carillion Services Ltd,Large,1123683,"8,505.82",Facilities - Core Fee,Administration
Land Registry,Land Registry,17/09/2015,Facilities - Core Fee,Gloucester Office,Carillion Services Ltd,Large,1123683,"3,886.11",Facilities - Core Fee,Administration
Land Registry,Land Registry,17/09/2015,Facilities - Core Fee,Governance & Policy,Carillion Services Ltd,Large,1123683,"19,094.78",Facilities - Core Fee,Administration
Land Registry,Land Registry,17/09/2015,Facilities - Core Fee,Hull Office,Carillion Services Ltd,Large,1123683,"7,037.07",Facilities - Core Fee,Administration
Land Registry,Land Registry,17/09/2015,Facilities - Core Fee,Leicester Office,Carillion Services Ltd,Large,1123683,"10,114.17",Facilities - Core Fee,Administration
Land Registry,Land Registry,17/09/2015,Facilities - Core Fee,Nottingham Office,Carillion Services Ltd,Large,1123683,"6,653.53",Facilities - Core Fee,Administration
Land Registry,Land Registry,17/09/2015,Facilities - Core Fee,Peterborough Office,Carillion Services Ltd,Large,1123683,"3,791.75",Facilities - Core Fee,Administration
Land Registry,Land Registry,17/09/2015,Facilities - Core Fee,RFS4 - Coventry,Carillion Services Ltd,Large,1123683,23.41,Facilities - Core Fee,Administration
Land Registry,Land Registry,17/09/2015,Facilities - Core Fee,Telford Office,Carillion Services Ltd,Large,1123683,"6,783.46",Facilities - Core Fee,Administration
Land Registry,Land Registry,17/09/2015,Facilities - Core Fee,Wales Office,Carillion Services Ltd,Large,1123683,"5,740.89",Facilities - Core Fee,Administration
Land Registry,Land Registry,17/09/2015,Facilities - Core Fee,Weymouth Office,Carillion Services Ltd,Large,1123683,"2,873.07",Facilities - Core Fee,Administration
Land Registry,Land Registry,17/09/2015,Facilities - Quoted & Ad Hoc Works,Birkenhead Office,Carillion Services Ltd,Large,1123685,"12,437.81",Facilities - Quoted & Ad Hoc Works,Administration
Land Registry,Land Registry,17/09/2015,Facilities - Quoted & Ad Hoc Works,Coventry Office,Carillion Services Ltd,Large,1123685,"1,072.68",Facilities - Quoted & Ad Hoc Works,Administration
Land Registry,Land Registry,17/09/2015,Facilities - Quoted & Ad Hoc Works,Croydon Office,Carillion Services Ltd,Large,1123685,"15,980.20",Facilities - Quoted & Ad Hoc Works,Administration
Land Registry,Land Registry,17/09/2015,Facilities - Quoted & Ad Hoc Works,Durham Office,Carillion Services Ltd,Large,1123685,"10,471.30",Facilities - Quoted & Ad Hoc Works,Administration
Land Registry,Land Registry,17/09/2015,Facilities - Quoted & Ad Hoc Works,Fylde Office,Carillion Services Ltd,Large,1123685,"2,579.24",Facilities - Quoted & Ad Hoc Works,Administration
Land Registry,Land Registry,17/09/2015,Facilities - Quoted & Ad Hoc Works,Gloucester Computer Centre,Carillion Services Ltd,Large,1123685,"4,859.16",Facilities - Quoted & Ad Hoc Works,Administration
Land Registry,Land Registry,17/09/2015,Facilities - Quoted & Ad Hoc Works,Gloucester Office,Carillion Services Ltd,Large,1123685,"14,496.40",Facilities - Quoted & Ad Hoc Works,Administration
Land Registry,Land Registry,17/09/2015,Facilities - Quoted & Ad Hoc Works,Governance & Policy,Carillion Services Ltd,Large,1123685,"52,652.07",Facilities - Quoted & Ad Hoc Works,Administration
Land Registry,Land Registry,17/09/2015,Facilities - Quoted & Ad Hoc Works,Hull Office,Carillion Services Ltd,Large,1123685,"5,955.86",Facilities - Quoted & Ad Hoc Works,Administration
Land Registry,Land Registry,17/09/2015,Facilities - Quoted & Ad Hoc Works,Leicester Office,Carillion Services Ltd,Large,1123685,"19,917.27",Facilities - Quoted & Ad Hoc Works,Administration
Land Registry,Land Registry,17/09/2015,Facilities - Quoted & Ad Hoc Works,Nottingham Office,Carillion Services Ltd,Large,1123685,"4,151.28",Facilities - Quoted & Ad Hoc Works,Administration
Land Registry,Land Registry,17/09/2015,Facilities - Quoted & Ad Hoc Works,Peterborough Office,Carillion Services Ltd,Large,1123685,"1,939.95",Facilities - Quoted & Ad Hoc Works,Administration
Land Registry,Land Registry,17/09/2015,Facilities - Quoted & Ad Hoc Works,Telford Office,Carillion Services Ltd,Large,1123685,"7,589.57",Facilities - Quoted & Ad Hoc Works,Administration
Land Registry,Land Registry,17/09/2015,Facilities - Quoted & Ad Hoc Works,Wales Office,Carillion Services Ltd,Large,1123685,"13,472.03",Facilities - Quoted & Ad Hoc Works,Administration
Land Registry,Land Registry,17/09/2015,Facilities - Quoted & Ad Hoc Works,Weymouth Office,Carillion Services Ltd,Large,1123685,"18,870.57",Facilities - Quoted & Ad Hoc Works,Administration
Land Registry,Land Registry,17/09/2015,FF&F:Maintenance,Croydon Office,Carillion Services Ltd,Large,1123685,"1,641.75","Furniture, Fixtures & Fittings:Maintenance",Administration
Land Registry,Land Registry,17/09/2015,FF&F:Maintenance,Durham Office,Carillion Services Ltd,Large,1123685,"1,055.86","Furniture, Fixtures & Fittings:Maintenance",Administration
Land Registry,Land Registry,17/09/2015,FF&F:Maintenance,Fylde Office,Carillion Services Ltd,Large,1123685,"1,331.49","Furniture, Fixtures & Fittings:Maintenance",Administration
Land Registry,Land Registry,17/09/2015,FF&F:Maintenance,Gloucester Office,Carillion Services Ltd,Large,1123685,"1,390.86","Furniture, Fixtures & Fittings:Maintenance",Administration
Land Registry,Land Registry,17/09/2015,FF&F:Maintenance,Hull Office,Carillion Services Ltd,Large,1123685,138.27,"Furniture, Fixtures & Fittings:Maintenance",Administration
Land Registry,Land Registry,17/09/2015,FF&F:Maintenance,Leicester Office,Carillion Services Ltd,Large,1123685,720.18,"Furniture, Fixtures & Fittings:Maintenance",Administration
Land Registry,Land Registry,17/09/2015,FF&F:Maintenance,Nottingham Office,Carillion Services Ltd,Large,1123685,"2,343.81","Furniture, Fixtures & Fittings:Maintenance",Administration
Land Registry,Land Registry,17/09/2015,FF&F:Maintenance,Peterborough Office,Carillion Services Ltd,Large,1123685,781.27,"Furniture, Fixtures & Fittings:Maintenance",Administration
Land Registry,Land Registry,17/09/2015,FF&F:Maintenance,Telford Office,Carillion Services Ltd,Large,1123685,309.24,"Furniture, Fixtures & Fittings:Maintenance",Administration
Land Registry,Land Registry,17/09/2015,FF&F:Maintenance,Wales Office,Carillion Services Ltd,Large,1123685,386.02,"Furniture, Fixtures & Fittings:Maintenance",Administration
Land Registry,Land Registry,17/09/2015,FF&F:Maintenance,Weymouth Office,Carillion Services Ltd,Large,1123685,985.38,"Furniture, Fixtures & Fittings:Maintenance",Administration
Land Registry,Land Registry,17/09/2015,FF&F:Maintenance,Birkenhead Office,Carillion Services Ltd,Large,1123683,23.54,"Furniture, Fixtures & Fittings:Maintenance",Administration
Land Registry,Land Registry,17/09/2015,FF&F:Maintenance,Coventry Office,Carillion Services Ltd,Large,1123683,23.54,"Furniture, Fixtures & Fittings:Maintenance",Administration
Land Registry,Land Registry,17/09/2015,FF&F:Maintenance,Croydon Office,Carillion Services Ltd,Large,1123683,23.54,"Furniture, Fixtures & Fittings:Maintenance",Administration
Land Registry,Land Registry,17/09/2015,FF&F:Maintenance,Durham Office,Carillion Services Ltd,Large,1123683,23.54,"Furniture, Fixtures & Fittings:Maintenance",Administration
Land Registry,Land Registry,17/09/2015,FF&F:Maintenance,Fylde Office,Carillion Services Ltd,Large,1123683,23.54,"Furniture, Fixtures & Fittings:Maintenance",Administration
Land Registry,Land Registry,17/09/2015,FF&F:Maintenance,Gloucester Computer Centre,Carillion Services Ltd,Large,1123683,23.54,"Furniture, Fixtures & Fittings:Maintenance",Administration
Land Registry,Land Registry,17/09/2015,FF&F:Maintenance,Gloucester Office,Carillion Services Ltd,Large,1123683,23.54,"Furniture, Fixtures & Fittings:Maintenance",Administration
Land Registry,Land Registry,17/09/2015,FF&F:Maintenance,Governance & Policy,Carillion Services Ltd,Large,1123683,70.62,"Furniture, Fixtures & Fittings:Maintenance",Administration
Land Registry,Land Registry,17/09/2015,FF&F:Maintenance,Hull Office,Carillion Services Ltd,Large,1123683,23.54,"Furniture, Fixtures & Fittings:Maintenance",Administration
Land Registry,Land Registry,17/09/2015,FF&F:Maintenance,Leicester Office,Carillion Services Ltd,Large,1123683,47.08,"Furniture, Fixtures & Fittings:Maintenance",Administration
Land Registry,Land Registry,17/09/2015,FF&F:Maintenance,Nottingham Office,Carillion Services Ltd,Large,1123683,23.54,"Furniture, Fixtures & Fittings:Maintenance",Administration
Land Registry,Land Registry,17/09/2015,FF&F:Maintenance,Peterborough Office,Carillion Services Ltd,Large,1123683,23.55,"Furniture, Fixtures & Fittings:Maintenance",Administration
Land Registry,Land Registry,17/09/2015,FF&F:Maintenance,Telford Office,Carillion Services Ltd,Large,1123683,23.54,"Furniture, Fixtures & Fittings:Maintenance",Administration
Land Registry,Land Registry,17/09/2015,FF&F:Maintenance,Wales Office,Carillion Services Ltd,Large,1123683,47.08,"Furniture, Fixtures & Fittings:Maintenance",Administration
Land Registry,Land Registry,17/09/2015,FF&F:Maintenance,Weymouth Office,Carillion Services Ltd,Large,1123683,23.54,"Furniture, Fixtures & Fittings:Maintenance",Administration
Land Registry,Land Registry,17/09/2015,"FF&F:Purchases <1,000",Leicester Office,Carillion Services Ltd,Large,1123685,"1,360.70","Furniture,Fixtures &Fittings:Purchases less than 1,000",Administration
Land Registry,Land Registry,17/09/2015,"FF&F:Purchases <1,000",Peterborough Office,Carillion Services Ltd,Large,1123685,196.88,"Furniture,Fixtures &Fittings:Purchases less than 1,000",Administration
Land Registry,Land Registry,17/09/2015,FM Ext Helpdesk,Birkenhead Office,Carillion Services Ltd,Large,1123683,462.47,Facilities External Helpdesk,Administration
Land Registry,Land Registry,17/09/2015,FM Ext Helpdesk,Coventry Office,Carillion Services Ltd,Large,1123683,938.39,Facilities External Helpdesk,Administration
Land Registry,Land Registry,17/09/2015,FM Ext Helpdesk,Croydon Office,Carillion Services Ltd,Large,1123683,556.67,Facilities External Helpdesk,Administration
Land Registry,Land Registry,17/09/2015,FM Ext Helpdesk,Durham Office,Carillion Services Ltd,Large,1123683,580.43,Facilities External Helpdesk,Administration
Land Registry,Land Registry,17/09/2015,FM Ext Helpdesk,Fylde Office,Carillion Services Ltd,Large,1123683,403.65,Facilities External Helpdesk,Administration
Land Registry,Land Registry,17/09/2015,FM Ext Helpdesk,Gloucester Computer Centre,Carillion Services Ltd,Large,1123683,539.30,Facilities External Helpdesk,Administration
Land Registry,Land Registry,17/09/2015,FM Ext Helpdesk,Gloucester Office,Carillion Services Ltd,Large,1123683,581.34,Facilities External Helpdesk,Administration
Land Registry,Land Registry,17/09/2015,FM Ext Helpdesk,Governance & Policy,Carillion Services Ltd,Large,1123683,"1,474.52",Facilities External Helpdesk,Administration
Land Registry,Land Registry,17/09/2015,FM Ext Helpdesk,Hull Office,Carillion Services Ltd,Large,1123683,453.62,Facilities External Helpdesk,Administration
Land Registry,Land Registry,17/09/2015,FM Ext Helpdesk,Leicester Office,Carillion Services Ltd,Large,1123683,507.76,Facilities External Helpdesk,Administration
Land Registry,Land Registry,17/09/2015,FM Ext Helpdesk,Nottingham Office,Carillion Services Ltd,Large,1123683,"1,793.61",Facilities External Helpdesk,Administration
Land Registry,Land Registry,17/09/2015,FM Ext Helpdesk,Peterborough Office,Carillion Services Ltd,Large,1123683,592.41,Facilities External Helpdesk,Administration
Land Registry,Land Registry,17/09/2015,FM Ext Helpdesk,RFS4 - Coventry,Carillion Services Ltd,Large,1123683,7.76,Facilities External Helpdesk,Administration
Land Registry,Land Registry,17/09/2015,FM Ext Helpdesk,Telford Office,Carillion Services Ltd,Large,1123683,613.01,Facilities External Helpdesk,Administration
Land Registry,Land Registry,17/09/2015,FM Ext Helpdesk,Wales Office,Carillion Services Ltd,Large,1123683,439.50,Facilities External Helpdesk,Administration
Land Registry,Land Registry,17/09/2015,FM Ext Helpdesk,Weymouth Office,Carillion Services Ltd,Large,1123683,357.28,Facilities External Helpdesk,Administration
Land Registry,Land Registry,17/09/2015,FM Managed Services,Birkenhead Office,Carillion Services Ltd,Large,1123683,"6,097.91",Facilities Managed Services,Administration
Land Registry,Land Registry,17/09/2015,FM Managed Services,Coventry Office,Carillion Services Ltd,Large,1123683,"7,406.02",Facilities Managed Services,Administration
Land Registry,Land Registry,17/09/2015,FM Managed Services,Croydon Office,Carillion Services Ltd,Large,1123683,"6,165.11",Facilities Managed Services,Administration
Land Registry,Land Registry,17/09/2015,FM Managed Services,Durham Office,Carillion Services Ltd,Large,1123683,"5,902.51",Facilities Managed Services,Administration
Land Registry,Land Registry,17/09/2015,FM Managed Services,Fylde Office,Carillion Services Ltd,Large,1123683,"5,790.91",Facilities Managed Services,Administration
Land Registry,Land Registry,17/09/2015,FM Managed Services,Gloucester Computer Centre,Carillion Services Ltd,Large,1123683,"2,722.31",Facilities Managed Services,Administration
Land Registry,Land Registry,17/09/2015,FM Managed Services,Gloucester Office,Carillion Services Ltd,Large,1123683,"3,140.30",Facilities Managed Services,Administration
Land Registry,Land Registry,17/09/2015,FM Managed Services,Governance & Policy,Carillion Services Ltd,Large,1123683,"13,789.17",Facilities Managed Services,Administration
Land Registry,Land Registry,17/09/2015,FM Managed Services,Hull Office,Carillion Services Ltd,Large,1123683,"5,614.68",Facilities Managed Services,Administration
Land Registry,Land Registry,17/09/2015,FM Managed Services,Leicester Office,Carillion Services Ltd,Large,1123683,"6,539.67",Facilities Managed Services,Administration
Land Registry,Land Registry,17/09/2015,FM Managed Services,Nottingham Office,Carillion Services Ltd,Large,1123683,"10,927.96",Facilities Managed Services,Administration
Land Registry,Land Registry,17/09/2015,FM Managed Services,Peterborough Office,Carillion Services Ltd,Large,1123683,"5,413.85",Facilities Managed Services,Administration
Land Registry,Land Registry,17/09/2015,FM Managed Services,RFS4 - Coventry,Carillion Services Ltd,Large,1123683,24.99,Facilities Managed Services,Administration
Land Registry,Land Registry,17/09/2015,FM Managed Services,Telford Office,Carillion Services Ltd,Large,1123683,"6,087.72",Facilities Managed Services,Administration
Land Registry,Land Registry,17/09/2015,FM Managed Services,Wales Office,Carillion Services Ltd,Large,1123683,"5,657.53",Facilities Managed Services,Administration
Land Registry,Land Registry,17/09/2015,FM Managed Services,Weymouth Office,Carillion Services Ltd,Large,1123683,"5,791.88",Facilities Managed Services,Administration
Land Registry,Land Registry,17/09/2015,Gas,Birkenhead Office,Carillion Services Ltd,Large,1123684,540.75,Gas,Administration
Land Registry,Land Registry,17/09/2015,Gas,Coventry Office,Carillion Services Ltd,Large,1123684,"2,658.80",Gas,Administration
Land Registry,Land Registry,17/09/2015,Gas,Croydon Office,Carillion Services Ltd,Large,1123684,802.63,Gas,Administration
Land Registry,Land Registry,17/09/2015,Gas,Durham Office,Carillion Services Ltd,Large,1123684,449.83,Gas,Administration
Land Registry,Land Registry,17/09/2015,Gas,Fylde Office,Carillion Services Ltd,Large,1123684,598.85,Gas,Administration
Land Registry,Land Registry,17/09/2015,Gas,Gloucester Computer Centre,Carillion Services Ltd,Large,1123684,94.24,Gas,Administration
Land Registry,Land Registry,17/09/2015,Gas,Gloucester Office,Carillion Services Ltd,Large,1123684,481.87,Gas,Administration
Land Registry,Land Registry,17/09/2015,Gas,Governance & Policy,Carillion Services Ltd,Large,1123684,749.34,Gas,Administration
Land Registry,Land Registry,17/09/2015,Gas,Hull Office,Carillion Services Ltd,Large,1123684,934.33,Gas,Administration
Land Registry,Land Registry,17/09/2015,Gas,Leicester Office,Carillion Services Ltd,Large,1123684,513.82,Gas,Administration
Land Registry,Land Registry,17/09/2015,Gas,Nottingham Office,Carillion Services Ltd,Large,1123684,"-14,359.39",Gas,Administration
Land Registry,Land Registry,17/09/2015,Gas,Telford Office,Carillion Services Ltd,Large,1123684,"1,111.46",Gas,Administration
Land Registry,Land Registry,17/09/2015,Gas,Wales Office,Carillion Services Ltd,Large,1123684,310.93,Gas,Administration
Land Registry,Land Registry,17/09/2015,Gas,Weymouth Office,Carillion Services Ltd,Large,1123684,852.86,Gas,Administration
Land Registry,Land Registry,17/09/2015,Gas,Dir: Finance,Carillion Services Ltd,Large,1123684,724.89,Gas,Administration
Land Registry,Land Registry,17/09/2015,Grounds Maintenance,Governance & Policy,Carillion Services Ltd,Large,1123685,"1,590.29",Grounds Maintenance,Administration
Land Registry,Land Registry,17/09/2015,Grounds Maintenance,Wales Office,Carillion Services Ltd,Large,1123685,"1,104.73",Grounds Maintenance,Administration
Land Registry,Land Registry,17/09/2015,Grounds Maintenance,Birkenhead Office,Carillion Services Ltd,Large,1123683,355.36,Grounds Maintenance,Administration
Land Registry,Land Registry,17/09/2015,Grounds Maintenance,Coventry Office,Carillion Services Ltd,Large,1123683,672.52,Grounds Maintenance,Administration
Land Registry,Land Registry,17/09/2015,Grounds Maintenance,Croydon Office,Carillion Services Ltd,Large,1123683,67.00,Grounds Maintenance,Administration
Land Registry,Land Registry,17/09/2015,Grounds Maintenance,Durham Office,Carillion Services Ltd,Large,1123683,832.33,Grounds Maintenance,Administration
Land Registry,Land Registry,17/09/2015,Grounds Maintenance,Fylde Office,Carillion Services Ltd,Large,1123683,"1,554.42",Grounds Maintenance,Administration
Land Registry,Land Registry,17/09/2015,Grounds Maintenance,Gloucester Computer Centre,Carillion Services Ltd,Large,1123683,94.07,Grounds Maintenance,Administration
Land Registry,Land Registry,17/09/2015,Grounds Maintenance,Gloucester Office,Carillion Services Ltd,Large,1123683,636.14,Grounds Maintenance,Administration
Land Registry,Land Registry,17/09/2015,Grounds Maintenance,Governance & Policy,Carillion Services Ltd,Large,1123683,"1,520.50",Grounds Maintenance,Administration
Land Registry,Land Registry,17/09/2015,Grounds Maintenance,Hull Office,Carillion Services Ltd,Large,1123683,636.14,Grounds Maintenance,Administration
Land Registry,Land Registry,17/09/2015,Grounds Maintenance,Leicester Office,Carillion Services Ltd,Large,1123683,200.91,Grounds Maintenance,Administration
Land Registry,Land Registry,17/09/2015,Grounds Maintenance,Nottingham Office,Carillion Services Ltd,Large,1123683,322.52,Grounds Maintenance,Administration
Land Registry,Land Registry,17/09/2015,Grounds Maintenance,Telford Office,Carillion Services Ltd,Large,1123683,"1,096.26",Grounds Maintenance,Administration
Land Registry,Land Registry,17/09/2015,Grounds Maintenance,Wales Office,Carillion Services Ltd,Large,1123683,471.95,Grounds Maintenance,Administration
Land Registry,Land Registry,17/09/2015,Grounds Maintenance,Weymouth Office,Carillion Services Ltd,Large,1123683,733.21,Grounds Maintenance,Administration
Land Registry,Land Registry,17/09/2015,Office Cleaning Expenses,Gloucester Office,Carillion Services Ltd,Large,1123685,"6,662.64",Office Cleaning Expenses,Administration
Land Registry,Land Registry,17/09/2015,Office Cleaning Expenses,Governance & Policy,Carillion Services Ltd,Large,1123685,144.41,Office Cleaning Expenses,Administration
Land Registry,Land Registry,17/09/2015,Office Cleaning Expenses,Wales Office,Carillion Services Ltd,Large,1123685,85.23,Office Cleaning Expenses,Administration
Land Registry,Land Registry,17/09/2015,Office Cleaning Expenses,Birkenhead Office,Carillion Services Ltd,Large,1123683,"5,309.21",Office Cleaning Expenses,Administration
Land Registry,Land Registry,17/09/2015,Office Cleaning Expenses,Coventry Office,Carillion Services Ltd,Large,1123683,"5,427.82",Office Cleaning Expenses,Administration
Land Registry,Land Registry,17/09/2015,Office Cleaning Expenses,Croydon Office,Carillion Services Ltd,Large,1123683,"3,773.63",Office Cleaning Expenses,Administration
Land Registry,Land Registry,17/09/2015,Office Cleaning Expenses,Durham Office,Carillion Services Ltd,Large,1123683,"6,166.96",Office Cleaning Expenses,Administration
Land Registry,Land Registry,17/09/2015,Office Cleaning Expenses,Fylde Office,Carillion Services Ltd,Large,1123683,"3,640.35",Office Cleaning Expenses,Administration
Land Registry,Land Registry,17/09/2015,Office Cleaning Expenses,Gloucester Computer Centre,Carillion Services Ltd,Large,1123683,529.72,Office Cleaning Expenses,Administration
Land Registry,Land Registry,17/09/2015,Office Cleaning Expenses,Gloucester Office,Carillion Services Ltd,Large,1123683,"6,884.39",Office Cleaning Expenses,Administration
Land Registry,Land Registry,17/09/2015,Office Cleaning Expenses,Governance & Policy,Carillion Services Ltd,Large,1123683,"8,668.11",Office Cleaning Expenses,Administration
Land Registry,Land Registry,17/09/2015,Office Cleaning Expenses,Hull Office,Carillion Services Ltd,Large,1123683,"3,855.48",Office Cleaning Expenses,Administration
Land Registry,Land Registry,17/09/2015,Office Cleaning Expenses,Leicester Office,Carillion Services Ltd,Large,1123683,"3,319.50",Office Cleaning Expenses,Administration
Land Registry,Land Registry,17/09/2015,Office Cleaning Expenses,Nottingham Office,Carillion Services Ltd,Large,1123683,"5,829.74",Office Cleaning Expenses,Administration
Land Registry,Land Registry,17/09/2015,Office Cleaning Expenses,Peterborough Office,Carillion Services Ltd,Large,1123683,827.71,Office Cleaning Expenses,Administration
Land Registry,Land Registry,17/09/2015,Office Cleaning Expenses,Telford Office,Carillion Services Ltd,Large,1123683,"6,005.76",Office Cleaning Expenses,Administration
Land Registry,Land Registry,17/09/2015,Office Cleaning Expenses,Wales Office,Carillion Services Ltd,Large,1123683,"4,873.22",Office Cleaning Expenses,Administration
Land Registry,Land Registry,17/09/2015,Office Cleaning Expenses,Weymouth Office,Carillion Services Ltd,Large,1123683,"4,306.07",Office Cleaning Expenses,Administration
Land Registry,Land Registry,17/09/2015,Office Cleaning Expenses,Dir: Finance,Carillion Services Ltd,Large,1123683,278.85,Office Cleaning Expenses,Administration
Land Registry,Land Registry,17/09/2015,Pest Control,Coventry Office,Carillion Services Ltd,Large,1123685,"4,589.23",Pest Control,Administration
Land Registry,Land Registry,17/09/2015,Pest Control,Weymouth Office,Carillion Services Ltd,Large,1123685,49.11,Pest Control,Administration
Land Registry,Land Registry,17/09/2015,Pest Control,Birkenhead Office,Carillion Services Ltd,Large,1123683,40.61,Pest Control,Administration
Land Registry,Land Registry,17/09/2015,Pest Control,Coventry Office,Carillion Services Ltd,Large,1123683,51.76,Pest Control,Administration
Land Registry,Land Registry,17/09/2015,Pest Control,Croydon Office,Carillion Services Ltd,Large,1123683,38.99,Pest Control,Administration
Land Registry,Land Registry,17/09/2015,Pest Control,Durham Office,Carillion Services Ltd,Large,1123683,47.50,Pest Control,Administration
Land Registry,Land Registry,17/09/2015,Pest Control,Fylde Office,Carillion Services Ltd,Large,1123683,38.39,Pest Control,Administration
Land Registry,Land Registry,17/09/2015,Pest Control,Gloucester Computer Centre,Carillion Services Ltd,Large,1123683,27.75,Pest Control,Administration
Land Registry,Land Registry,17/09/2015,Pest Control,Gloucester Office,Carillion Services Ltd,Large,1123683,45.29,Pest Control,Administration
Land Registry,Land Registry,17/09/2015,Pest Control,Governance & Policy,Carillion Services Ltd,Large,1123683,139.70,Pest Control,Administration
Land Registry,Land Registry,17/09/2015,Pest Control,Hull Office,Carillion Services Ltd,Large,1123683,48.52,Pest Control,Administration
Land Registry,Land Registry,17/09/2015,Pest Control,Leicester Office,Carillion Services Ltd,Large,1123683,38.39,Pest Control,Administration
Land Registry,Land Registry,17/09/2015,Pest Control,Nottingham Office,Carillion Services Ltd,Large,1123683,131.10,Pest Control,Administration
Land Registry,Land Registry,17/09/2015,Pest Control,Peterborough Office,Carillion Services Ltd,Large,1123683,39.79,Pest Control,Administration
Land Registry,Land Registry,17/09/2015,Pest Control,RFS4 - Coventry,Carillion Services Ltd,Large,1123683,51.76,Pest Control,Administration
Land Registry,Land Registry,17/09/2015,Pest Control,Telford Office,Carillion Services Ltd,Large,1123683,43.59,Pest Control,Administration
Land Registry,Land Registry,17/09/2015,Pest Control,Wales Office,Carillion Services Ltd,Large,1123683,57.55,Pest Control,Administration
Land Registry,Land Registry,17/09/2015,Pest Control,Weymouth Office,Carillion Services Ltd,Large,1123683,40.61,Pest Control,Administration
Land Registry,Land Registry,17/09/2015,Property Management; Other Fees,Dir: Finance,Carillion Services Ltd,Large,1123683,"1,900.62",Property Management; Other Fees,Administration
Land Registry,Land Registry,17/09/2015,Security Expenses,Birkenhead Office,Carillion Services Ltd,Large,1123685,412.37,Security Expenses,Administration
Land Registry,Land Registry,17/09/2015,Security Expenses,Croydon Office,Carillion Services Ltd,Large,1123685,483.74,Security Expenses,Administration
Land Registry,Land Registry,17/09/2015,Security Expenses,Durham Office,Carillion Services Ltd,Large,1123685,167.09,Security Expenses,Administration
Land Registry,Land Registry,17/09/2015,Security Expenses,Fylde Office,Carillion Services Ltd,Large,1123685,"2,818.08",Security Expenses,Administration
Land Registry,Land Registry,17/09/2015,Security Expenses,Gloucester Office,Carillion Services Ltd,Large,1123685,"6,285.56",Security Expenses,Administration
Land Registry,Land Registry,17/09/2015,Security Expenses,Governance & Policy,Carillion Services Ltd,Large,1123685,"1,402.30",Security Expenses,Administration
Land Registry,Land Registry,17/09/2015,Security Expenses,Hull Office,Carillion Services Ltd,Large,1123685,"1,347.69",Security Expenses,Administration
Land Registry,Land Registry,17/09/2015,Security Expenses,Leicester Office,Carillion Services Ltd,Large,1123685,977.45,Security Expenses,Administration
Land Registry,Land Registry,17/09/2015,Security Expenses,Nottingham Office,Carillion Services Ltd,Large,1123685,264.37,Security Expenses,Administration
Land Registry,Land Registry,17/09/2015,Security Expenses,Telford Office,Carillion Services Ltd,Large,1123685,251.42,Security Expenses,Administration
Land Registry,Land Registry,17/09/2015,Security Expenses,Wales Office,Carillion Services Ltd,Large,1123685,90.99,Security Expenses,Administration
Land Registry,Land Registry,17/09/2015,Security Expenses,Weymouth Office,Carillion Services Ltd,Large,1123685,"13,936.27",Security Expenses,Administration
Land Registry,Land Registry,17/09/2015,Security Expenses,Birkenhead Office,Carillion Services Ltd,Large,1123683,"3,068.04",Security Expenses,Administration
Land Registry,Land Registry,17/09/2015,Security Expenses,Coventry Office,Carillion Services Ltd,Large,1123683,"6,692.36",Security Expenses,Administration
Land Registry,Land Registry,17/09/2015,Security Expenses,Croydon Office,Carillion Services Ltd,Large,1123683,"8,249.45",Security Expenses,Administration
Land Registry,Land Registry,17/09/2015,Security Expenses,Durham Office,Carillion Services Ltd,Large,1123683,"2,487.10",Security Expenses,Administration
Land Registry,Land Registry,17/09/2015,Security Expenses,Fylde Office,Carillion Services Ltd,Large,1123683,"2,252.72",Security Expenses,Administration
Land Registry,Land Registry,17/09/2015,Security Expenses,Gloucester Computer Centre,Carillion Services Ltd,Large,1123683,"7,193.99",Security Expenses,Administration
Land Registry,Land Registry,17/09/2015,Security Expenses,Gloucester Office,Carillion Services Ltd,Large,1123683,"9,157.74",Security Expenses,Administration
Land Registry,Land Registry,17/09/2015,Security Expenses,Governance & Policy,Carillion Services Ltd,Large,1123683,"18,603.16",Security Expenses,Administration
Land Registry,Land Registry,17/09/2015,Security Expenses,Hull Office,Carillion Services Ltd,Large,1123683,-231.57,Security Expenses,Administration
Land Registry,Land Registry,17/09/2015,Security Expenses,Leicester Office,Carillion Services Ltd,Large,1123683,"2,538.48",Security Expenses,Administration
Land Registry,Land Registry,17/09/2015,Security Expenses,Nottingham Office,Carillion Services Ltd,Large,1123683,"3,228.60",Security Expenses,Administration
Land Registry,Land Registry,17/09/2015,Security Expenses,Telford Office,Carillion Services Ltd,Large,1123683,"2,770.19",Security Expenses,Administration
Land Registry,Land Registry,17/09/2015,Security Expenses,Wales Office,Carillion Services Ltd,Large,1123683,"2,510.62",Security Expenses,Administration
Land Registry,Land Registry,17/09/2015,Security Expenses,Weymouth Office,Carillion Services Ltd,Large,1123683,"2,772.74",Security Expenses,Administration
Land Registry,Land Registry,17/09/2015,Vending Machine Consumables & Repairs,Birkenhead Office,Carillion Services Ltd,Large,1123683,"1,184.04",Vending Machine Consumables & Repairs,Administration
Land Registry,Land Registry,17/09/2015,Vending Machine Consumables & Repairs,Coventry Office,Carillion Services Ltd,Large,1123683,173.66,Vending Machine Consumables & Repairs,Administration
Land Registry,Land Registry,17/09/2015,Vending Machine Consumables & Repairs,Croydon Office,Carillion Services Ltd,Large,1123683,220.48,Vending Machine Consumables & Repairs,Administration
Land Registry,Land Registry,17/09/2015,Vending Machine Consumables & Repairs,Durham Office,Carillion Services Ltd,Large,1123683,43.42,Vending Machine Consumables & Repairs,Administration
Land Registry,Land Registry,17/09/2015,Vending Machine Consumables & Repairs,Fylde Office,Carillion Services Ltd,Large,1123683,154.93,Vending Machine Consumables & Repairs,Administration
Land Registry,Land Registry,17/09/2015,Vending Machine Consumables & Repairs,Gloucester Computer Centre,Carillion Services Ltd,Large,1123683,19.75,Vending Machine Consumables & Repairs,Administration
Land Registry,Land Registry,17/09/2015,Vending Machine Consumables & Repairs,Gloucester Office,Carillion Services Ltd,Large,1123683,142.00,Vending Machine Consumables & Repairs,Administration
Land Registry,Land Registry,17/09/2015,Vending Machine Consumables & Repairs,Governance & Policy,Carillion Services Ltd,Large,1123683,214.70,Vending Machine Consumables & Repairs,Administration
Land Registry,Land Registry,17/09/2015,Vending Machine Consumables & Repairs,Hull Office,Carillion Services Ltd,Large,1123683,341.54,Vending Machine Consumables & Repairs,Administration
Land Registry,Land Registry,17/09/2015,Vending Machine Consumables & Repairs,Leicester Office,Carillion Services Ltd,Large,1123683,114.24,Vending Machine Consumables & Repairs,Administration
Land Registry,Land Registry,17/09/2015,Vending Machine Consumables & Repairs,Nottingham Office,Carillion Services Ltd,Large,1123683,127.69,Vending Machine Consumables & Repairs,Administration
Land Registry,Land Registry,17/09/2015,Vending Machine Consumables & Repairs,Telford Office,Carillion Services Ltd,Large,1123683,195.03,Vending Machine Consumables & Repairs,Administration
Land Registry,Land Registry,17/09/2015,Vending Machine Consumables & Repairs,Wales Office,Carillion Services Ltd,Large,1123683,191.20,Vending Machine Consumables & Repairs,Administration
Land Registry,Land Registry,17/09/2015,Vending Machine Consumables & Repairs,Weymouth Office,Carillion Services Ltd,Large,1123683,110.67,Vending Machine Consumables & Repairs,Administration
Land Registry,Land Registry,17/09/2015,Waste Disposal,Birkenhead Office,Carillion Services Ltd,Large,1123685,223.08,Waste Disposal,Administration
Land Registry,Land Registry,17/09/2015,Waste Disposal,Coventry Office,Carillion Services Ltd,Large,1123685,489.75,Waste Disposal,Administration
Land Registry,Land Registry,17/09/2015,Waste Disposal,Durham Office,Carillion Services Ltd,Large,1123685,165.90,Waste Disposal,Administration
Land Registry,Land Registry,17/09/2015,Waste Disposal,Gloucester Office,Carillion Services Ltd,Large,1123685,"1,373.87",Waste Disposal,Administration
Land Registry,Land Registry,17/09/2015,Waste Disposal,Governance & Policy,Carillion Services Ltd,Large,1123685,538.82,Waste Disposal,Administration
Land Registry,Land Registry,17/09/2015,Waste Disposal,Hull Office,Carillion Services Ltd,Large,1123685,25.94,Waste Disposal,Administration
Land Registry,Land Registry,17/09/2015,Waste Disposal,Nottingham Office,Carillion Services Ltd,Large,1123685,62.25,Waste Disposal,Administration
Land Registry,Land Registry,17/09/2015,Waste Disposal,Telford Office,Carillion Services Ltd,Large,1123685,332.00,Waste Disposal,Administration
Land Registry,Land Registry,17/09/2015,Waste Disposal,Birkenhead Office,Carillion Services Ltd,Large,1123683,285.18,Waste Disposal,Administration
Land Registry,Land Registry,17/09/2015,Waste Disposal,Coventry Office,Carillion Services Ltd,Large,1123683,238.36,Waste Disposal,Administration
Land Registry,Land Registry,17/09/2015,Waste Disposal,Croydon Office,Carillion Services Ltd,Large,1123683,208.80,Waste Disposal,Administration
Land Registry,Land Registry,17/09/2015,Waste Disposal,Durham Office,Carillion Services Ltd,Large,1123683,332.00,Waste Disposal,Administration
Land Registry,Land Registry,17/09/2015,Waste Disposal,Fylde Office,Carillion Services Ltd,Large,1123683,255.56,Waste Disposal,Administration
Land Registry,Land Registry,17/09/2015,Waste Disposal,Gloucester Computer Centre,Carillion Services Ltd,Large,1123683,45.38,Waste Disposal,Administration
Land Registry,Land Registry,17/09/2015,Waste Disposal,Gloucester Office,Carillion Services Ltd,Large,1123683,247.47,Waste Disposal,Administration
Land Registry,Land Registry,17/09/2015,Waste Disposal,Governance & Policy,Carillion Services Ltd,Large,1123683,653.15,Waste Disposal,Administration
Land Registry,Land Registry,17/09/2015,Waste Disposal,Hull Office,Carillion Services Ltd,Large,1123683,186.68,Waste Disposal,Administration
Land Registry,Land Registry,17/09/2015,Waste Disposal,Leicester Office,Carillion Services Ltd,Large,1123683,270.03,Waste Disposal,Administration
Land Registry,Land Registry,17/09/2015,Waste Disposal,Nottingham Office,Carillion Services Ltd,Large,1123683,332.00,Waste Disposal,Administration
Land Registry,Land Registry,17/09/2015,Waste Disposal,Telford Office,Carillion Services Ltd,Large,1123683,238.79,Waste Disposal,Administration
Land Registry,Land Registry,17/09/2015,Waste Disposal,Wales Office,Carillion Services Ltd,Large,1123683,205.84,Waste Disposal,Administration
Land Registry,Land Registry,17/09/2015,Waste Disposal,Weymouth Office,Carillion Services Ltd,Large,1123683,169.72,Waste Disposal,Administration
Land Registry,Land Registry,17/09/2015,Waste Disposal,Dir: Finance,Carillion Services Ltd,Large,1123683,68.62,Waste Disposal,Administration
Land Registry,Land Registry,17/09/2015,Water,Coventry Office,Carillion Services Ltd,Large,1123684,"1,976.95",Water,Administration
Land Registry,Land Registry,17/09/2015,Water,Gloucester Computer Centre,Carillion Services Ltd,Large,1123684,193.90,Water,Administration
Land Registry,Land Registry,17/09/2015,Water,Gloucester Office,Carillion Services Ltd,Large,1123684,"1,195.86",Water,Administration
Land Registry,Land Registry,17/09/2015,Water,Hull Office,Carillion Services Ltd,Large,1123684,"1,680.15",Water,Administration
Land Registry,Land Registry,17/09/2015,Water,Nottingham Office,Carillion Services Ltd,Large,1123684,"3,046.56",Water,Administration
Land Registry,Land Registry,17/09/2015,Water,Telford Office,Carillion Services Ltd,Large,1123684,"4,852.60",Water,Administration
Land Registry,Land Registry,17/09/2015,Water,Weymouth Office,Carillion Services Ltd,Large,1123684,"4,613.52",Water,Administration
Land Registry,Land Registry,17/09/2015,Water,Dir: Finance,Carillion Services Ltd,Large,1123684,857.44,Water,Administration
Land Registry,Land Registry,03/09/2015,Computer Equipment Maintenance,IS Service Delivery,CGI IT UK Limited,Large,1122155,"68,833.33",Computer Equipment Maintenance,Administration
Land Registry,Land Registry,21/09/2015,Computer Equipment Maintenance,IS Service Delivery,CGI IT UK Limited,Large,1123173,"29,697.40",Computer Equipment Maintenance,Administration
Land Registry,Land Registry,01/09/2015,Computer Equipment Hire,IS Service Delivery,CHG-MERIDIAN UK Limited,Large,1122984,"54,985.00",Computer Equipment Hire,Administration
Land Registry,Land Registry,01/09/2015,Finance Lease Obligatns < 1 yr,Balance Sheet,CHG-MERIDIAN UK Limited,Large,1121281,"54,575.56",Finance Lease Obligatns less than 1 year,Administration
Land Registry,Land Registry,28/09/2015,Rates Payable,Wales Office,City & County of Swansea,Large,1103652,"17,593.00",Rates Payable,Administration
Land Registry,Land Registry,28/09/2015,Rates Payable,Dir: HR,City of York Council,Large,1102255,"17,748.00",Rates Payable,Administration
Land Registry,Land Registry,24/09/2015,Rent Payable,Peterborough Office,Commercial Estates Group Ltd,SME,1100786,59221.8,Rent Payable,Administration
Land Registry,Land Registry,24/09/2015,Service Charges,Peterborough Office,Commercial Estates Group Ltd,SME,1120379,24350.21,Service Charges,Administration
Land Registry,Land Registry,28/09/2015,Rates Payable,Coventry Office,Coventry City Council,Large,1103644,"40,180.00",Rates Payable,Administration
Land Registry,Land Registry,01/09/2015,Rates Payable,Croydon Office,Croydon Council,Large,1102254,"29,241.00",Rates Payable,Administration
Land Registry,Land Registry,30/09/2015,Rates Payable,Croydon Office,Croydon Council,Large,1102254,"29,241.00",Rates Payable,Administration
Land Registry,Land Registry,04/09/2015,Energy Management Excluding Equipment,Central Facilities Management Team,Department of Energy and Climate Change,Large,1122176,160720,Energy Management Excluding Equipment,Administration
Land Registry,Land Registry,24/09/2015,Rent Payable,Nottingham Office,Dtz Debenham Tie Leung Ltd,Large,1102512,183577.5,Rent Payable,Administration
Land Registry,Land Registry,28/09/2015,Rates Payable,Durham Office,Durham County Council,Large,1103047,"28,594.00",Rates Payable,Administration
Land Registry,Land Registry,15/09/2015,Hays Document Exchange (DX),Central Facilities Management Team,DX Network Services Ltd,Large,1124563,335519.16,DX Document Exchange,Administration
Land Registry,Land Registry,15/09/2015,Transport Fuel,Central Facilities Management Team,Enterprise Rent-A-Car (UK) Ltd,Large,1123389,"2,645.63",Transport Fuel,Administration
Land Registry,Land Registry,15/09/2015,Transport Hire of Cars and Vans,Central Facilities Management Team,Enterprise Rent-A-Car (UK) Ltd,Large,1123389,"24,562.27",Transport Hire of Cars and Vans,Administration
Land Registry,Land Registry,28/09/2015,Rates Payable,Fylde Office,Fylde Borough Council,Large,1101943,"15,488.00",Rates Payable,Administration
Land Registry,Land Registry,24/09/2015,Rent Payable,Governance & Policy,GBR Phoenix Beard Property Consultants,Large,1103447,29550,Rent Payable,Administration
Land Registry,Land Registry,24/09/2015,Rent Payable,RFS11 - Plymouth,GBR Phoenix Beard Property Consultants,Large,1103446,38400,Rent Payable,Administration
Land Registry,Land Registry,28/09/2015,Rates Payable,Gloucester Office,Gloucester City Council,Large,1103041,"24,201.00",Rates Payable,Administration
Land Registry,Land Registry,14/09/2015,Online Law Updated,Professional Library,Government Legal Department,Large,1122512,105965.57,Online Law Updated,Administration
Land Registry,Land Registry,09/09/2015,National Medical Expenses,HR,Health Management Ltd,Large,1121887,49137.6,National Medical Expenses,Administration
Land Registry,Land Registry,10/09/2015,Computer Equipment Maintenance,IS Service Delivery,IBM United Kingdom Ltd,Large,1122771,"54,206.00",Computer Equipment Maintenance,Administration
Land Registry,Land Registry,24/09/2015,Rent Payable,Dir: HR,Jones Lang LaSalle Ltd,Large,1101420,135000,Rent Payable,Administration
Land Registry,Land Registry,04/09/2015,Employment Agency Staff Costs,Dir: (Statutory) Digital Services,Kainos Software Ltd,Large,1122316,"15,660.00",Employment Agency Staff Costs,Administration
Land Registry,Land Registry,04/09/2015,Employment Agency Staff Costs,Prog: Digital by Default,Kainos Software Ltd,Large,1122316,"36,150.00",Employment Agency Staff Costs,Administration
Land Registry,Land Registry,04/09/2015,Employment Agency Staff Costs,Prog: Digital by Default,Kainos Software Ltd,Large,1122315,"56,820.00",Employment Agency Staff Costs,Administration
Land Registry,Land Registry,02/09/2015,Computer Equipment Maintenance,IS Service Delivery,Kelway Ltd,Large,1122041,59548.61,Computer Equipment Maintenance,Administration
Land Registry,Land Registry,11/09/2015,Fixed Asset Interface Account,Balance Sheet,Kelway Ltd,Large,1122172,200438.21,Fixed Assets,Administration
Land Registry,Land Registry,21/09/2015,Fixed Asset Interface Account,Balance Sheet,Kelway Ltd,Large,1123381,130793.17,Fixed Assets,Administration
Land Registry,Land Registry,10/09/2015,Rates Payable,Hull Office,Kingston Upon Hull City Council,Large,1103201,"13,065.00",Rates Payable,Administration
Land Registry,Land Registry,28/09/2015,Rent Payable,Hull Office,Kingston Upon Hull City Council,Large,1104851,"12,500.00",Rent Payable,Administration
Land Registry,Land Registry,28/09/2015,Rates Payable,Leicester Office,Leicester City Council,Large,1101944,"18,488.00",Rates Payable,Administration
Land Registry,Land Registry,24/09/2015,Rent Payable,Gloucester Office,Metrus Property Advisors Ltd,Large,1104253,211500,Rent Payable,Administration
Land Registry,Land Registry,30/09/2015,Legal  Expenses,Director of Legal Services,Ministry of Justice,Large,1124884,37500,Legal  Expenses,Administration
Land Registry,Land Registry,28/09/2015,Rates Payable,Nottingham Office,Nottingham City Council,Large,1103651,"24,650.00",Rates Payable,Administration
Land Registry,Land Registry,28/09/2015,Rates Payable,Peterborough Office,Peterborough City Council,Large,1102471,"11,093.00",Rates Payable,Administration
Land Registry,Land Registry,28/09/2015,Rates Payable,Governance & Policy,Plymouth City Council,Large,1101940,"36,975.00",Rates Payable,Administration
Land Registry,Land Registry,07/09/2015,Travel & Subsistence General Duty,Business Development,Redfern Travel Ltd,SME,1122656,386.63,Travel & Subsistence,Administration
Land Registry,Land Registry,07/09/2015,Travel & Subsistence General Duty,Central Facilities Management Team,Redfern Travel Ltd,SME,1122656,374.89,Travel & Subsistence,Administration
Land Registry,Land Registry,07/09/2015,Travel & Subsistence General Duty,Central Operations Group,Redfern Travel Ltd,SME,1122656,"1,496.51",Travel & Subsistence,Administration
Land Registry,Land Registry,07/09/2015,Travel & Subsistence General Duty,Chief Executives Office,Redfern Travel Ltd,SME,1122656,346.48,Travel & Subsistence,Administration
Land Registry,Land Registry,07/09/2015,Travel & Subsistence General Duty,Commercial & Customer Strategy & Performance,Redfern Travel Ltd,SME,1122656,283.09,Travel & Subsistence,Administration
Land Registry,Land Registry,07/09/2015,Travel & Subsistence General Duty,Corp Procurement,Redfern Travel Ltd,SME,1122656,709.36,Travel & Subsistence,Administration
Land Registry,Land Registry,07/09/2015,Travel & Subsistence General Duty,Corporate Assurance,Redfern Travel Ltd,SME,1122656,485.88,Travel & Subsistence,Administration
Land Registry,Land Registry,07/09/2015,Travel & Subsistence General Duty,Corporate Legal Services,Redfern Travel Ltd,SME,1122656,277.22,Travel & Subsistence,Administration
Land Registry,Land Registry,07/09/2015,Travel & Subsistence General Duty,Dir: (Statutory) Digital Services,Redfern Travel Ltd,SME,1122656,"4,760.06",Travel & Subsistence,Administration
Land Registry,Land Registry,07/09/2015,Travel & Subsistence General Duty,Dir: Operations,Redfern Travel Ltd,SME,1122656,734.64,Travel & Subsistence,Administration
Land Registry,Land Registry,07/09/2015,Travel & Subsistence General Duty,Director of Information Systems,Redfern Travel Ltd,SME,1122656,348.97,Travel & Subsistence,Administration
Land Registry,Land Registry,07/09/2015,Travel & Subsistence General Duty,Director of Legal Services,Redfern Travel Ltd,SME,1122656,81.89,Travel & Subsistence,Administration
Land Registry,Land Registry,07/09/2015,Travel & Subsistence General Duty,Durham Office,Redfern Travel Ltd,SME,1122656,192.17,Travel & Subsistence,Administration
Land Registry,Land Registry,07/09/2015,Travel & Subsistence General Duty,Finance Group,Redfern Travel Ltd,SME,1122656,116.01,Travel & Subsistence,Administration
Land Registry,Land Registry,07/09/2015,Travel & Subsistence General Duty,Forward Scanning,Redfern Travel Ltd,SME,1122656,107.61,Travel & Subsistence,Administration
Land Registry,Land Registry,07/09/2015,Travel & Subsistence General Duty,Gloucester Office,Redfern Travel Ltd,SME,1122656,78.00,Travel & Subsistence,Administration
Land Registry,Land Registry,07/09/2015,Travel & Subsistence General Duty,Guarantee & Litigation,Redfern Travel Ltd,SME,1122656,172.83,Travel & Subsistence,Administration
Land Registry,Land Registry,07/09/2015,Travel & Subsistence General Duty,HR Group,Redfern Travel Ltd,SME,1122656,"1,922.11",Travel & Subsistence,Administration
Land Registry,Land Registry,07/09/2015,Travel & Subsistence General Duty,Hull Office,Redfern Travel Ltd,SME,1122656,93.61,Travel & Subsistence,Administration
Land Registry,Land Registry,07/09/2015,Travel & Subsistence General Duty,Internal Solutions Group,Redfern Travel Ltd,SME,1122656,"1,182.62",Travel & Subsistence,Administration
Land Registry,Land Registry,07/09/2015,Travel & Subsistence General Duty,International Unit,Redfern Travel Ltd,SME,1122656,"2,691.48",Travel & Subsistence,Administration
Land Registry,Land Registry,07/09/2015,Travel & Subsistence General Duty,IS Service Delivery,Redfern Travel Ltd,SME,1122656,"1,101.76",Travel & Subsistence,Administration
Land Registry,Land Registry,07/09/2015,Travel & Subsistence General Duty,Leicester Office,Redfern Travel Ltd,SME,1122656,187.54,Travel & Subsistence,Administration
Land Registry,Land Registry,07/09/2015,Travel & Subsistence General Duty,Local Land Charges,Redfern Travel Ltd,SME,1122656,733.73,Travel & Subsistence,Administration
Land Registry,Land Registry,07/09/2015,Travel & Subsistence General Duty,Local Lawyer Group,Redfern Travel Ltd,SME,1122656,"1,122.37",Travel & Subsistence,Administration
Land Registry,Land Registry,07/09/2015,Travel & Subsistence General Duty,LR Connect Portfolio,Redfern Travel Ltd,SME,1122656,979.87,Travel & Subsistence,Administration
Land Registry,Land Registry,07/09/2015,Travel & Subsistence General Duty,Marketing Services Team,Redfern Travel Ltd,SME,1122656,210.39,Travel & Subsistence,Administration
Land Registry,Land Registry,07/09/2015,Travel & Subsistence General Duty,Organisation & Employee Development,Redfern Travel Ltd,SME,1122656,326.82,Travel & Subsistence,Administration
Land Registry,Land Registry,07/09/2015,Travel & Subsistence General Duty,Product Development & Management,Redfern Travel Ltd,SME,1122656,350.10,Travel & Subsistence,Administration
Land Registry,Land Registry,07/09/2015,Travel & Subsistence General Duty,Prog: Digital by Default,Redfern Travel Ltd,SME,1122656,358.37,Travel & Subsistence,Administration
Land Registry,Land Registry,07/09/2015,Travel & Subsistence General Duty,Prog: e-Enablement,Redfern Travel Ltd,SME,1122656,117.05,Travel & Subsistence,Administration
Land Registry,Land Registry,07/09/2015,Travel & Subsistence General Duty,Prog: IT Foundations,Redfern Travel Ltd,SME,1122656,71.83,Travel & Subsistence,Administration
Land Registry,Land Registry,07/09/2015,Travel & Subsistence General Duty,Program: Local Land Charges,Redfern Travel Ltd,SME,1122656,"3,067.44",Travel & Subsistence,Administration
Land Registry,Land Registry,07/09/2015,Travel & Subsistence General Duty,Property Asset Management Group,Redfern Travel Ltd,SME,1122656,340.26,Travel & Subsistence,Administration
Land Registry,Land Registry,07/09/2015,Travel & Subsistence General Duty,Research & Data Mining,Redfern Travel Ltd,SME,1122656,39.65,Travel & Subsistence,Administration
Land Registry,Land Registry,07/09/2015,Travel & Subsistence General Duty,Technology Group,Redfern Travel Ltd,SME,1122656,353.97,Travel & Subsistence,Administration
Land Registry,Land Registry,07/09/2015,Travel & Subsistence General Duty,Independent Complaints Reviewer,Redfern Travel Ltd,SME,1122656,122.42,Travel & Subsistence,Administration
Land Registry,Land Registry,15/09/2015,Travel & Subsistence General Duty,Birkenhead Office,Redfern Travel Ltd,SME,1123384,71.80,Travel & Subsistence,Administration
Land Registry,Land Registry,15/09/2015,Travel & Subsistence General Duty,Business Development,Redfern Travel Ltd,SME,1123384,341.84,Travel & Subsistence,Administration
Land Registry,Land Registry,15/09/2015,Travel & Subsistence General Duty,Central Facilities Management Team,Redfern Travel Ltd,SME,1123384,"1,088.42",Travel & Subsistence,Administration
Land Registry,Land Registry,15/09/2015,Travel & Subsistence General Duty,Central Operations Group,Redfern Travel Ltd,SME,1123384,"1,170.15",Travel & Subsistence,Administration
Land Registry,Land Registry,15/09/2015,Travel & Subsistence General Duty,Chief Executives Office,Redfern Travel Ltd,SME,1123384,591.28,Travel & Subsistence,Administration
Land Registry,Land Registry,15/09/2015,Travel & Subsistence General Duty,Commercial & Customer Strategy & Performance,Redfern Travel Ltd,SME,1123384,81.58,Travel & Subsistence,Administration
Land Registry,Land Registry,15/09/2015,Travel & Subsistence General Duty,Commercial Director,Redfern Travel Ltd,SME,1123384,246.73,Travel & Subsistence,Administration
Land Registry,Land Registry,15/09/2015,Travel & Subsistence General Duty,Corp Procurement,Redfern Travel Ltd,SME,1123384,285.40,Travel & Subsistence,Administration
Land Registry,Land Registry,15/09/2015,Travel & Subsistence General Duty,Corporate Assurance,Redfern Travel Ltd,SME,1123384,672.69,Travel & Subsistence,Administration
Land Registry,Land Registry,15/09/2015,Travel & Subsistence General Duty,Corporate Legal Services,Redfern Travel Ltd,SME,1123384,"1,104.12",Travel & Subsistence,Administration
Land Registry,Land Registry,15/09/2015,Travel & Subsistence General Duty,Customer Services,Redfern Travel Ltd,SME,1123384,74.25,Travel & Subsistence,Administration
Land Registry,Land Registry,15/09/2015,Travel & Subsistence General Duty,Data Group,Redfern Travel Ltd,SME,1123384,265.00,Travel & Subsistence,Administration
Land Registry,Land Registry,15/09/2015,Travel & Subsistence General Duty,Dir: (Statutory) Digital Services,Redfern Travel Ltd,SME,1123384,"1,135.93",Travel & Subsistence,Administration
Land Registry,Land Registry,15/09/2015,Travel & Subsistence General Duty,Dir: Operations,Redfern Travel Ltd,SME,1123384,"2,174.55",Travel & Subsistence,Administration
Land Registry,Land Registry,15/09/2015,Travel & Subsistence General Duty,Director of Information Systems,Redfern Travel Ltd,SME,1123384,"2,287.28",Travel & Subsistence,Administration
Land Registry,Land Registry,15/09/2015,Travel & Subsistence General Duty,Director of Legal Services,Redfern Travel Ltd,SME,1123384,"1,766.30",Travel & Subsistence,Administration
Land Registry,Land Registry,15/09/2015,Travel & Subsistence General Duty,Durham Office,Redfern Travel Ltd,SME,1123384,144.92,Travel & Subsistence,Administration
Land Registry,Land Registry,15/09/2015,Travel & Subsistence General Duty,Finance Director,Redfern Travel Ltd,SME,1123384,279.77,Travel & Subsistence,Administration
Land Registry,Land Registry,15/09/2015,Travel & Subsistence General Duty,Finance Group,Redfern Travel Ltd,SME,1123384,114.74,Travel & Subsistence,Administration
Land Registry,Land Registry,15/09/2015,Travel & Subsistence General Duty,Fylde Office,Redfern Travel Ltd,SME,1123384,112.56,Travel & Subsistence,Administration
Land Registry,Land Registry,15/09/2015,Travel & Subsistence General Duty,Gloucester Office,Redfern Travel Ltd,SME,1123384,-18.39,Travel & Subsistence,Administration
Land Registry,Land Registry,15/09/2015,Travel & Subsistence General Duty,Guarantee & Litigation,Redfern Travel Ltd,SME,1123384,150.52,Travel & Subsistence,Administration
Land Registry,Land Registry,15/09/2015,Travel & Subsistence General Duty,HR,Redfern Travel Ltd,SME,1123384,36.33,Travel & Subsistence,Administration
Land Registry,Land Registry,15/09/2015,Travel & Subsistence General Duty,HR Group,Redfern Travel Ltd,SME,1123384,"3,196.33",Travel & Subsistence,Administration
Land Registry,Land Registry,15/09/2015,Travel & Subsistence General Duty,Hull Office,Redfern Travel Ltd,SME,1123384,212.98,Travel & Subsistence,Administration
Land Registry,Land Registry,15/09/2015,Travel & Subsistence General Duty,Internal Solutions Group,Redfern Travel Ltd,SME,1123384,832.38,Travel & Subsistence,Administration
Land Registry,Land Registry,15/09/2015,Travel & Subsistence General Duty,International Unit,Redfern Travel Ltd,SME,1123384,919.53,Travel & Subsistence,Administration
Land Registry,Land Registry,15/09/2015,Travel & Subsistence General Duty,IS Service Delivery,Redfern Travel Ltd,SME,1123384,951.87,Travel & Subsistence,Administration
Land Registry,Land Registry,15/09/2015,Travel & Subsistence General Duty,Leicester Office,Redfern Travel Ltd,SME,1123384,160.94,Travel & Subsistence,Administration
Land Registry,Land Registry,15/09/2015,Travel & Subsistence General Duty,Local Land Charges,Redfern Travel Ltd,SME,1123384,"1,252.62",Travel & Subsistence,Administration
Land Registry,Land Registry,15/09/2015,Travel & Subsistence General Duty,Local Lawyer Group,Redfern Travel Ltd,SME,1123384,"1,541.01",Travel & Subsistence,Administration
Land Registry,Land Registry,15/09/2015,Travel & Subsistence General Duty,LR Connect Portfolio,Redfern Travel Ltd,SME,1123384,"1,000.18",Travel & Subsistence,Administration
Land Registry,Land Registry,15/09/2015,Travel & Subsistence General Duty,Marketing Services Team,Redfern Travel Ltd,SME,1123384,208.14,Travel & Subsistence,Administration
Land Registry,Land Registry,15/09/2015,Travel & Subsistence General Duty,Nottingham Office,Redfern Travel Ltd,SME,1123384,13.30,Travel & Subsistence,Administration
Land Registry,Land Registry,15/09/2015,Travel & Subsistence General Duty,Peterborough Office,Redfern Travel Ltd,SME,1123384,93.60,Travel & Subsistence,Administration
Land Registry,Land Registry,15/09/2015,Travel & Subsistence General Duty,Product Development & Management,Redfern Travel Ltd,SME,1123384,825.47,Travel & Subsistence,Administration
Land Registry,Land Registry,15/09/2015,Travel & Subsistence General Duty,Prog: Digital by Default,Redfern Travel Ltd,SME,1123384,"1,876.16",Travel & Subsistence,Administration
Land Registry,Land Registry,15/09/2015,Travel & Subsistence General Duty,Prog: e-Enablement,Redfern Travel Ltd,SME,1123384,167.23,Travel & Subsistence,Administration
Land Registry,Land Registry,15/09/2015,Travel & Subsistence General Duty,Prog: IT Foundations,Redfern Travel Ltd,SME,1123384,80.88,Travel & Subsistence,Administration
Land Registry,Land Registry,15/09/2015,Travel & Subsistence General Duty,Program: Local Land Charges,Redfern Travel Ltd,SME,1123384,"2,204.16",Travel & Subsistence,Administration
Land Registry,Land Registry,15/09/2015,Travel & Subsistence General Duty,Projects and Programme Centre,Redfern Travel Ltd,SME,1123384,634.94,Travel & Subsistence,Administration
Land Registry,Land Registry,15/09/2015,Travel & Subsistence General Duty,Property Asset Management Group,Redfern Travel Ltd,SME,1123384,"1,058.41",Travel & Subsistence,Administration
Land Registry,Land Registry,15/09/2015,Travel & Subsistence General Duty,Registration Legal Services Group,Redfern Travel Ltd,SME,1123384,46.80,Travel & Subsistence,Administration
Land Registry,Land Registry,15/09/2015,Travel & Subsistence General Duty,Research & Data Mining,Redfern Travel Ltd,SME,1123384,408.81,Travel & Subsistence,Administration
Land Registry,Land Registry,15/09/2015,Travel & Subsistence General Duty,Strategy Team,Redfern Travel Ltd,SME,1123384,112.98,Travel & Subsistence,Administration
Land Registry,Land Registry,15/09/2015,Travel & Subsistence General Duty,Technology Group,Redfern Travel Ltd,SME,1123384,671.10,Travel & Subsistence,Administration
Land Registry,Land Registry,15/09/2015,Travel & Subsistence General Duty,Telford Office,Redfern Travel Ltd,SME,1123384,86.46,Travel & Subsistence,Administration
Land Registry,Land Registry,15/09/2015,Travel & Subsistence General Duty,Wales Office,Redfern Travel Ltd,SME,1123384,337.12,Travel & Subsistence,Administration
Land Registry,Land Registry,15/09/2015,Travel & Subsistence General Duty,Independent Complaints Reviewer,Redfern Travel Ltd,SME,1123384,60.22,Travel & Subsistence,Administration
Land Registry,Land Registry,15/09/2015,Travel & Subsistence General Duty,Stakeholder Management,Redfern Travel Ltd,SME,1123384,25.11,Travel & Subsistence,Administration
Land Registry,Land Registry,22/09/2015,Travel & Subsistence General Duty,Business Development,Redfern Travel Ltd,SME,1123942,96.52,Travel & Subsistence,Administration
Land Registry,Land Registry,22/09/2015,Travel & Subsistence General Duty,Central Facilities Management Team,Redfern Travel Ltd,SME,1123942,"1,011.02",Travel & Subsistence,Administration
Land Registry,Land Registry,22/09/2015,Travel & Subsistence General Duty,Central Operations Group,Redfern Travel Ltd,SME,1123942,297.22,Travel & Subsistence,Administration
Land Registry,Land Registry,22/09/2015,Travel & Subsistence General Duty,Chief Executives Office,Redfern Travel Ltd,SME,1123942,643.56,Travel & Subsistence,Administration
Land Registry,Land Registry,22/09/2015,Travel & Subsistence General Duty,Commercial & Customer Strategy & Performance,Redfern Travel Ltd,SME,1123942,365.53,Travel & Subsistence,Administration
Land Registry,Land Registry,22/09/2015,Travel & Subsistence General Duty,Commercial Director,Redfern Travel Ltd,SME,1123942,166.60,Travel & Subsistence,Administration
Land Registry,Land Registry,22/09/2015,Travel & Subsistence General Duty,Corp Procurement,Redfern Travel Ltd,SME,1123942,378.60,Travel & Subsistence,Administration
Land Registry,Land Registry,22/09/2015,Travel & Subsistence General Duty,Corporate Assurance,Redfern Travel Ltd,SME,1123942,815.45,Travel & Subsistence,Administration
Land Registry,Land Registry,22/09/2015,Travel & Subsistence General Duty,Corporate Legal Services,Redfern Travel Ltd,SME,1123942,317.78,Travel & Subsistence,Administration
Land Registry,Land Registry,22/09/2015,Travel & Subsistence General Duty,Coventry Office,Redfern Travel Ltd,SME,1123942,108.81,Travel & Subsistence,Administration
Land Registry,Land Registry,22/09/2015,Travel & Subsistence General Duty,Croydon Office,Redfern Travel Ltd,SME,1123942,167.72,Travel & Subsistence,Administration
Land Registry,Land Registry,22/09/2015,Travel & Subsistence General Duty,Data Group,Redfern Travel Ltd,SME,1123942,137.86,Travel & Subsistence,Administration
Land Registry,Land Registry,22/09/2015,Travel & Subsistence General Duty,Dir: (Statutory) Digital Services,Redfern Travel Ltd,SME,1123942,526.93,Travel & Subsistence,Administration
Land Registry,Land Registry,22/09/2015,Travel & Subsistence General Duty,Dir: Operations,Redfern Travel Ltd,SME,1123942,881.96,Travel & Subsistence,Administration
Land Registry,Land Registry,22/09/2015,Travel & Subsistence General Duty,Director of Information Systems,Redfern Travel Ltd,SME,1123942,621.46,Travel & Subsistence,Administration
Land Registry,Land Registry,22/09/2015,Travel & Subsistence General Duty,Director of Legal Services,Redfern Travel Ltd,SME,1123942,421.58,Travel & Subsistence,Administration
Land Registry,Land Registry,22/09/2015,Travel & Subsistence General Duty,Durham Office,Redfern Travel Ltd,SME,1123942,166.43,Travel & Subsistence,Administration
Land Registry,Land Registry,22/09/2015,Travel & Subsistence General Duty,Finance Director,Redfern Travel Ltd,SME,1123942,343.22,Travel & Subsistence,Administration
Land Registry,Land Registry,22/09/2015,Travel & Subsistence General Duty,Finance Group,Redfern Travel Ltd,SME,1123942,131.61,Travel & Subsistence,Administration
Land Registry,Land Registry,22/09/2015,Travel & Subsistence General Duty,Gloucester Office,Redfern Travel Ltd,SME,1123942,309.39,Travel & Subsistence,Administration
Land Registry,Land Registry,22/09/2015,Travel & Subsistence General Duty,Guarantee & Litigation,Redfern Travel Ltd,SME,1123942,483.45,Travel & Subsistence,Administration
Land Registry,Land Registry,22/09/2015,Travel & Subsistence General Duty,HR,Redfern Travel Ltd,SME,1123942,174.25,Travel & Subsistence,Administration
Land Registry,Land Registry,22/09/2015,Travel & Subsistence General Duty,HR Group,Redfern Travel Ltd,SME,1123942,"2,392.58",Travel & Subsistence,Administration
Land Registry,Land Registry,22/09/2015,Travel & Subsistence General Duty,Hull Office,Redfern Travel Ltd,SME,1123942,95.78,Travel & Subsistence,Administration
Land Registry,Land Registry,22/09/2015,Travel & Subsistence General Duty,Internal Solutions Group,Redfern Travel Ltd,SME,1123942,"1,195.57",Travel & Subsistence,Administration
Land Registry,Land Registry,22/09/2015,Travel & Subsistence General Duty,International Unit,Redfern Travel Ltd,SME,1123942,362.78,Travel & Subsistence,Administration
Land Registry,Land Registry,22/09/2015,Travel & Subsistence General Duty,IS Service Delivery,Redfern Travel Ltd,SME,1123942,"2,307.19",Travel & Subsistence,Administration
Land Registry,Land Registry,22/09/2015,Travel & Subsistence General Duty,Leicester Office,Redfern Travel Ltd,SME,1123942,311.73,Travel & Subsistence,Administration
Land Registry,Land Registry,22/09/2015,Travel & Subsistence General Duty,Local Land Charges,Redfern Travel Ltd,SME,1123942,"2,155.41",Travel & Subsistence,Administration
Land Registry,Land Registry,22/09/2015,Travel & Subsistence General Duty,Local Lawyer Group,Redfern Travel Ltd,SME,1123942,"2,356.49",Travel & Subsistence,Administration
Land Registry,Land Registry,22/09/2015,Travel & Subsistence General Duty,LR Board & Board Chair,Redfern Travel Ltd,SME,1123942,1.41,Travel & Subsistence,Administration
Land Registry,Land Registry,22/09/2015,Travel & Subsistence General Duty,LR Connect Portfolio,Redfern Travel Ltd,SME,1123942,"2,617.01",Travel & Subsistence,Administration
Land Registry,Land Registry,22/09/2015,Travel & Subsistence General Duty,Marketing Services Team,Redfern Travel Ltd,SME,1123942,754.69,Travel & Subsistence,Administration
Land Registry,Land Registry,22/09/2015,Travel & Subsistence General Duty,Nottingham Office,Redfern Travel Ltd,SME,1123942,166.24,Travel & Subsistence,Administration
Land Registry,Land Registry,22/09/2015,Travel & Subsistence General Duty,Organisation & Employee Development,Redfern Travel Ltd,SME,1123942,467.43,Travel & Subsistence,Administration
Land Registry,Land Registry,22/09/2015,Travel & Subsistence General Duty,Product Development & Management,Redfern Travel Ltd,SME,1123942,949.41,Travel & Subsistence,Administration
Land Registry,Land Registry,22/09/2015,Travel & Subsistence General Duty,Prog: Digital by Default,Redfern Travel Ltd,SME,1123942,"1,134.98",Travel & Subsistence,Administration
Land Registry,Land Registry,22/09/2015,Travel & Subsistence General Duty,Prog: e-Enablement,Redfern Travel Ltd,SME,1123942,533.94,Travel & Subsistence,Administration
Land Registry,Land Registry,22/09/2015,Travel & Subsistence General Duty,Prog: IT Foundations,Redfern Travel Ltd,SME,1123942,56.59,Travel & Subsistence,Administration
Land Registry,Land Registry,22/09/2015,Travel & Subsistence General Duty,Program: Local Land Charges,Redfern Travel Ltd,SME,1123942,"3,430.28",Travel & Subsistence,Administration
Land Registry,Land Registry,22/09/2015,Travel & Subsistence General Duty,Projects and Programme Centre,Redfern Travel Ltd,SME,1123942,-511.30,Travel & Subsistence,Administration
Land Registry,Land Registry,22/09/2015,Travel & Subsistence General Duty,Property Asset Management Group,Redfern Travel Ltd,SME,1123942,587.54,Travel & Subsistence,Administration
Land Registry,Land Registry,22/09/2015,Travel & Subsistence General Duty,Registration Legal Services Group,Redfern Travel Ltd,SME,1123942,468.40,Travel & Subsistence,Administration
Land Registry,Land Registry,22/09/2015,Travel & Subsistence General Duty,Research & Data Mining,Redfern Travel Ltd,SME,1123942,311.28,Travel & Subsistence,Administration
Land Registry,Land Registry,22/09/2015,Travel & Subsistence General Duty,Technology Group,Redfern Travel Ltd,SME,1123942,605.87,Travel & Subsistence,Administration
Land Registry,Land Registry,22/09/2015,Travel & Subsistence General Duty,Wales Office,Redfern Travel Ltd,SME,1123942,29.01,Travel & Subsistence,Administration
Land Registry,Land Registry,22/09/2015,Travel & Subsistence General Duty,Independent Complaints Reviewer,Redfern Travel Ltd,SME,1123942,60.22,Travel & Subsistence,Administration
Land Registry,Land Registry,22/09/2015,Travel & Subsistence General Duty,LR Sports Council,Redfern Travel Ltd,SME,1123942,39.65,Travel & Subsistence,Administration
Land Registry,Land Registry,22/09/2015,Travel & Subsistence General Duty,Survey & Mapping Services,Redfern Travel Ltd,SME,1123942,251.69,Travel & Subsistence,Administration
Land Registry,Land Registry,29/09/2015,Travel & Subsistence General Duty,Birkenhead Office,Redfern Travel Ltd,SME,1124871,353.61,Travel & Subsistence,Administration
Land Registry,Land Registry,29/09/2015,Travel & Subsistence General Duty,Business Development,Redfern Travel Ltd,SME,1124871,632.95,Travel & Subsistence,Administration
Land Registry,Land Registry,29/09/2015,Travel & Subsistence General Duty,Central Facilities Management Team,Redfern Travel Ltd,SME,1124871,"1,601.18",Travel & Subsistence,Administration
Land Registry,Land Registry,29/09/2015,Travel & Subsistence General Duty,Central Operations Group,Redfern Travel Ltd,SME,1124871,"1,318.81",Travel & Subsistence,Administration
Land Registry,Land Registry,29/09/2015,Travel & Subsistence General Duty,Chief Executives Office,Redfern Travel Ltd,SME,1124871,"2,391.59",Travel & Subsistence,Administration
Land Registry,Land Registry,29/09/2015,Travel & Subsistence General Duty,Commercial & Customer Strategy & Performance,Redfern Travel Ltd,SME,1124871,773.62,Travel & Subsistence,Administration
Land Registry,Land Registry,29/09/2015,Travel & Subsistence General Duty,Corp Procurement,Redfern Travel Ltd,SME,1124871,199.46,Travel & Subsistence,Administration
Land Registry,Land Registry,29/09/2015,Travel & Subsistence General Duty,Corporate Assurance,Redfern Travel Ltd,SME,1124871,238.39,Travel & Subsistence,Administration
Land Registry,Land Registry,29/09/2015,Travel & Subsistence General Duty,Corporate Legal Services,Redfern Travel Ltd,SME,1124871,381.18,Travel & Subsistence,Administration
Land Registry,Land Registry,29/09/2015,Travel & Subsistence General Duty,Croydon Office,Redfern Travel Ltd,SME,1124871,282.03,Travel & Subsistence,Administration
Land Registry,Land Registry,29/09/2015,Travel & Subsistence General Duty,Data Group,Redfern Travel Ltd,SME,1124871,401.96,Travel & Subsistence,Administration
Land Registry,Land Registry,29/09/2015,Travel & Subsistence General Duty,Dir: (Statutory) Digital Services,Redfern Travel Ltd,SME,1124871,"1,794.82",Travel & Subsistence,Administration
Land Registry,Land Registry,29/09/2015,Travel & Subsistence General Duty,Dir: Operations,Redfern Travel Ltd,SME,1124871,"1,533.04",Travel & Subsistence,Administration
Land Registry,Land Registry,29/09/2015,Travel & Subsistence General Duty,Director of Information Systems,Redfern Travel Ltd,SME,1124871,359.25,Travel & Subsistence,Administration
Land Registry,Land Registry,29/09/2015,Travel & Subsistence General Duty,Director of Legal Services,Redfern Travel Ltd,SME,1124871,554.68,Travel & Subsistence,Administration
Land Registry,Land Registry,29/09/2015,Travel & Subsistence General Duty,Durham Office,Redfern Travel Ltd,SME,1124871,738.65,Travel & Subsistence,Administration
Land Registry,Land Registry,29/09/2015,Travel & Subsistence General Duty,Finance Director,Redfern Travel Ltd,SME,1124871,367.64,Travel & Subsistence,Administration
Land Registry,Land Registry,29/09/2015,Travel & Subsistence General Duty,Forward Scanning,Redfern Travel Ltd,SME,1124871,255.91,Travel & Subsistence,Administration
Land Registry,Land Registry,29/09/2015,Travel & Subsistence General Duty,Fylde Office,Redfern Travel Ltd,SME,1124871,1.41,Travel & Subsistence,Administration
Land Registry,Land Registry,29/09/2015,Travel & Subsistence General Duty,Gloucester Office,Redfern Travel Ltd,SME,1124871,290.53,Travel & Subsistence,Administration
Land Registry,Land Registry,29/09/2015,Travel & Subsistence General Duty,Guarantee & Litigation,Redfern Travel Ltd,SME,1124871,277.83,Travel & Subsistence,Administration
Land Registry,Land Registry,29/09/2015,Travel & Subsistence General Duty,HR Group,Redfern Travel Ltd,SME,1124871,"3,035.21",Travel & Subsistence,Administration
Land Registry,Land Registry,29/09/2015,Travel & Subsistence General Duty,Internal Solutions Group,Redfern Travel Ltd,SME,1124871,"2,036.27",Travel & Subsistence,Administration
Land Registry,Land Registry,29/09/2015,Travel & Subsistence General Duty,International Unit,Redfern Travel Ltd,SME,1124871,"1,834.74",Travel & Subsistence,Administration
Land Registry,Land Registry,29/09/2015,Travel & Subsistence General Duty,IS Service Delivery,Redfern Travel Ltd,SME,1124871,"1,936.72",Travel & Subsistence,Administration
Land Registry,Land Registry,29/09/2015,Travel & Subsistence General Duty,Local Land Charges,Redfern Travel Ltd,SME,1124871,"2,601.51",Travel & Subsistence,Administration
Land Registry,Land Registry,29/09/2015,Travel & Subsistence General Duty,Local Lawyer Group,Redfern Travel Ltd,SME,1124871,965.57,Travel & Subsistence,Administration
Land Registry,Land Registry,29/09/2015,Travel & Subsistence General Duty,LR Connect Portfolio,Redfern Travel Ltd,SME,1124871,"2,078.77",Travel & Subsistence,Administration
Land Registry,Land Registry,29/09/2015,Travel & Subsistence General Duty,Marketing Services Team,Redfern Travel Ltd,SME,1124871,"1,866.09",Travel & Subsistence,Administration
Land Registry,Land Registry,29/09/2015,Travel & Subsistence General Duty,Nottingham Office,Redfern Travel Ltd,SME,1124871,142.25,Travel & Subsistence,Administration
Land Registry,Land Registry,29/09/2015,Travel & Subsistence General Duty,Organisation & Employee Development,Redfern Travel Ltd,SME,1124871,416.54,Travel & Subsistence,Administration
Land Registry,Land Registry,29/09/2015,Travel & Subsistence General Duty,Peterborough Office,Redfern Travel Ltd,SME,1124871,150.95,Travel & Subsistence,Administration
Land Registry,Land Registry,29/09/2015,Travel & Subsistence General Duty,Plymouth Office,Redfern Travel Ltd,SME,1124871,66.61,Travel & Subsistence,Administration
Land Registry,Land Registry,29/09/2015,Travel & Subsistence General Duty,Product Development & Management,Redfern Travel Ltd,SME,1124871,144.12,Travel & Subsistence,Administration
Land Registry,Land Registry,29/09/2015,Travel & Subsistence General Duty,Prog: Digital by Default,Redfern Travel Ltd,SME,1124871,614.50,Travel & Subsistence,Administration
Land Registry,Land Registry,29/09/2015,Travel & Subsistence General Duty,Prog: e-Enablement,Redfern Travel Ltd,SME,1124871,233.94,Travel & Subsistence,Administration
Land Registry,Land Registry,29/09/2015,Travel & Subsistence General Duty,Program: Local Land Charges,Redfern Travel Ltd,SME,1124871,"1,323.72",Travel & Subsistence,Administration
Land Registry,Land Registry,29/09/2015,Travel & Subsistence General Duty,Property Asset Management Group,Redfern Travel Ltd,SME,1124871,261.65,Travel & Subsistence,Administration
Land Registry,Land Registry,29/09/2015,Travel & Subsistence General Duty,Registration Legal Services Group,Redfern Travel Ltd,SME,1124871,183.51,Travel & Subsistence,Administration
Land Registry,Land Registry,29/09/2015,Travel & Subsistence General Duty,Research & Data Mining,Redfern Travel Ltd,SME,1124871,170.72,Travel & Subsistence,Administration
Land Registry,Land Registry,29/09/2015,Travel & Subsistence General Duty,Technology Group,Redfern Travel Ltd,SME,1124871,684.49,Travel & Subsistence,Administration
Land Registry,Land Registry,29/09/2015,Travel & Subsistence General Duty,Telford Office,Redfern Travel Ltd,SME,1124871,291.35,Travel & Subsistence,Administration
Land Registry,Land Registry,29/09/2015,Travel & Subsistence General Duty,Wales Office,Redfern Travel Ltd,SME,1124871,120.93,Travel & Subsistence,Administration
Land Registry,Land Registry,29/09/2015,Travel & Subsistence General Duty,Weymouth Office,Redfern Travel Ltd,SME,1124871,281.31,Travel & Subsistence,Administration
Land Registry,Land Registry,29/09/2015,Travel & Subsistence General Duty,National Lawyer Training,Redfern Travel Ltd,SME,1124871,197.09,Travel & Subsistence,Administration
Land Registry,Land Registry,17/09/2015,Letter Post,Birkenhead Office,Royal Mail,Large,1123686,"1,958.21",Letter Post,Administration
Land Registry,Land Registry,17/09/2015,Letter Post,Central Facilities Management Team,Royal Mail,Large,1123686,"24,294.37",Letter Post,Administration
Land Registry,Land Registry,17/09/2015,Letter Post,Coventry Office,Royal Mail,Large,1123686,"6,335.15",Letter Post,Administration
Land Registry,Land Registry,17/09/2015,Letter Post,Croydon Office,Royal Mail,Large,1123686,"2,219.04",Letter Post,Administration
Land Registry,Land Registry,17/09/2015,Letter Post,Durham Office,Royal Mail,Large,1123686,"5,293.80",Letter Post,Administration
Land Registry,Land Registry,17/09/2015,Letter Post,Fylde Office,Royal Mail,Large,1123686,"2,011.61",Letter Post,Administration
Land Registry,Land Registry,17/09/2015,Letter Post,Gloucester Office,Royal Mail,Large,1123686,"1,576.11",Letter Post,Administration
Land Registry,Land Registry,17/09/2015,Letter Post,Hull Office,Royal Mail,Large,1123686,"2,357.35",Letter Post,Administration
Land Registry,Land Registry,17/09/2015,Letter Post,IS Service Delivery,Royal Mail,Large,1123686,"12,879.47",Letter Post,Administration
Land Registry,Land Registry,17/09/2015,Letter Post,Land Charges,Royal Mail,Large,1123686,718.71,Letter Post,Administration
Land Registry,Land Registry,17/09/2015,Letter Post,Leicester Office,Royal Mail,Large,1123686,"1,518.75",Letter Post,Administration
Land Registry,Land Registry,17/09/2015,Letter Post,Nottingham Office,Royal Mail,Large,1123686,"2,389.86",Letter Post,Administration
Land Registry,Land Registry,17/09/2015,Letter Post,Peterborough Office,Royal Mail,Large,1123686,"1,565.55",Letter Post,Administration
Land Registry,Land Registry,17/09/2015,Letter Post,Plymouth Office,Royal Mail,Large,1123686,"2,156.12",Letter Post,Administration
Land Registry,Land Registry,17/09/2015,Letter Post,Telford Office,Royal Mail,Large,1123686,"1,386.40",Letter Post,Administration
Land Registry,Land Registry,17/09/2015,Letter Post,Wales Office,Royal Mail,Large,1123686,"10,847.87",Letter Post,Administration
Land Registry,Land Registry,17/09/2015,Letter Post,Weymouth Office,Royal Mail,Large,1123686,"1,437.54",Letter Post,Administration
Land Registry,Land Registry,28/09/2015,Rates Payable,Governance & Policy,South Hams District Council,Large,1103042,"4,560.00",Rates Payable,Administration
Land Registry,Land Registry,28/09/2015,Rates Payable,RFS11 - Plymouth,South Hams District Council,Large,1103043,"7,987.00",Rates Payable,Administration
Land Registry,Land Registry,28/09/2015,Rates Payable,Telford Office,Telford & Wrekin Council,Large,1103039,"25,390.00",Rates Payable,Administration
Land Registry,Land Registry,28/09/2015,Rates Payable,Gloucester Computer Centre,Tewkesbury Borough Council,Large,1101942,"11,783.00",Rates Payable,Administration
Land Registry,Land Registry,07/09/2015,Online Law Updated,Professional Library,Thomson Reuters,Large,1122509,44496,Online Law Updated,Administration
Land Registry,Land Registry,08/09/2015,Maps & Plans Data Migration,Forward Scanning,TNT (UK) Ltd,Large,1122671,"190,592.81",Maps & Plans Data Migration,Administration
Land Registry,Land Registry,18/09/2015,RFS Outsourced Services,Central RFS,TNT (UK) Ltd,Large,1123735,"114,060.04",Regional File Store Outsourced Services,Administration
Land Registry,Land Registry,18/09/2015,RFS Outsourced Services,Central RFS,TNT (UK) Ltd,Large,1123737,189645.45,Regional File Store Outsourced Services,Administration
Land Registry,Land Registry,07/09/2015,Rates Payable,Weymouth Office,West Dorset District Council,Large,1104080,19350,Rates Payable,Administration
Land Registry,Land Registry,01/09/2015,Rates Payable,Birkenhead Office,Wirral Metrpolitan Borough Council,Large,1103044,3525,Rates Payable,Administration
Land Registry,Land Registry,01/09/2015,Rates Payable,Birkenhead Office,Wirral Metrpolitan Borough Council,Large,1103045,25143,Rates Payable,Administration
Land Registry,Land Registry,18/09/2015,Computer Equipment Consumables,Birkenhead Office,XMA Limited,Large,1123753,6167.36,Computer Equipment Consumables,Administration
Land Registry,Land Registry,18/09/2015,Computer Equipment Consumables,Coventry Office,XMA Limited,Large,1123753,17102.75,Computer Equipment Consumables,Administration
Land Registry,Land Registry,18/09/2015,Computer Equipment Consumables,Croydon Office,XMA Limited,Large,1123753,3552.69,Computer Equipment Consumables,Administration
Land Registry,Land Registry,18/09/2015,Computer Equipment Consumables,Durham Office,XMA Limited,Large,1123753,10640.2,Computer Equipment Consumables,Administration
Land Registry,Land Registry,18/09/2015,Computer Equipment Consumables,Fylde Office,XMA Limited,Large,1123753,5772.34,Computer Equipment Consumables,Administration
Land Registry,Land Registry,18/09/2015,Computer Equipment Consumables,Gloucester Office,XMA Limited,Large,1123753,1671.66,Computer Equipment Consumables,Administration
Land Registry,Land Registry,18/09/2015,Computer Equipment Consumables,Hull Office,XMA Limited,Large,1123753,5566.96,Computer Equipment Consumables,Administration
Land Registry,Land Registry,18/09/2015,Computer Equipment Consumables,Internal Solutions Group,XMA Limited,Large,1123753,4702.35,Computer Equipment Consumables,Administration
Land Registry,Land Registry,18/09/2015,Computer Equipment Consumables,IS Service Delivery,XMA Limited,Large,1123753,336.29,Computer Equipment Consumables,Administration
Land Registry,Land Registry,18/09/2015,Computer Equipment Consumables,Leicester Office,XMA Limited,Large,1123753,2925.77,Computer Equipment Consumables,Administration
Land Registry,Land Registry,18/09/2015,Computer Equipment Consumables,Nottingham Office,XMA Limited,Large,1123753,4694.24,Computer Equipment Consumables,Administration
Land Registry,Land Registry,18/09/2015,Computer Equipment Consumables,Plymouth Office,XMA Limited,Large,1123753,8043.54,Computer Equipment Consumables,Administration
Land Registry,Land Registry,18/09/2015,Computer Equipment Consumables,Telford Office,XMA Limited,Large,1123753,2978.73,Computer Equipment Consumables,Administration
Land Registry,Land Registry,18/09/2015,Computer Equipment Consumables,Wales Office,XMA Limited,Large,1123753,6092.06,Computer Equipment Consumables,Administration
Land Registry,Land Registry,18/09/2015,Computer Equipment Consumables,Weymouth Office,XMA Limited,Large,1123753,4404.76,Computer Equipment Consumables,Administration
